[Event "Titled Tuesday Blitz May 30 Early 2023"]
[White "Torres Dominguez, David"]
[Black "Goswami, Vedant"]
[WhiteFideId "2220857"]
[BlackFideId "5003725"]
[WhiteElo "1999"]
[BlackElo "2011"]
[Result "0-1"]
[Round "03"]
[TimeControl "180+2"]
[Date "2023.05.30"]
[WhiteClock "0:00:10"]
[BlackClock "0:01:15"]

1. e4 {[%clk 0:02:59]}  c6 {[%clk 0:02:51]} 2. Nf3 {[%clk 0:02:58]}  d5 {[%clk 0:02:50]} 3. d3 {[%clk 0:02:59]}  dxe4 {[%clk 0:02:50]} 4. dxe4 {[%clk 0:03:00]}  Qxd1+ {[%clk 0:02:50]} 5. Kxd1 {[%clk 0:02:57]}  Nf6 {[%clk 0:02:48]} 6. Nfd2 {[%clk 0:02:56]}  e5 {[%clk 0:02:42]} 7. f3 {[%clk 0:02:55]}  Nfd7 {[%clk 0:02:42]} 8. Nb3 {[%clk 0:02:48]}  h5 {[%clk 0:02:27]} 9. Be3 {[%clk 0:02:48]}  a5 {[%clk 0:02:16]} 10. N1d2 {[%clk 0:02:49]}  a4 {[%clk 0:02:15]} 11. Nc1 {[%clk 0:02:40]}  a3 {[%clk 0:02:15]} 12. b3 {[%clk 0:02:22]}  Na6 {[%clk 0:02:00]} 13. Bxa6 {[%clk 0:02:09]}  Rxa6 {[%clk 0:01:57]} 14. Nd3 {[%clk 0:02:10]}  f6 {[%clk 0:01:56]} 15. c3 {[%clk 0:02:01]}  Be7 {[%clk 0:01:52]} 16. Kc2 {[%clk 0:01:45]}  Nf8 {[%clk 0:01:50]} 17. Rad1 {[%clk 0:01:46]}  Ne6 {[%clk 0:01:37]} 18. h3 {[%clk 0:01:41]}  h4 {[%clk 0:01:34]} 19. Nc4 {[%clk 0:01:09]}  g5 {[%clk 0:01:30]} 20. Bc1 {[%clk 0:01:07]}  Nf4 {[%clk 0:01:27]} 21. Nxf4 {[%clk 0:01:03]}  gxf4 {[%clk 0:01:27]} 22. b4 {[%clk 0:01:00]}  Rg8 {[%clk 0:01:27]} 23. Rhg1 {[%clk 0:00:42]}  Be6 {[%clk 0:01:26]} 24. Nxa3 {[%clk 0:00:41]}  Bxa2 {[%clk 0:01:22]} 25. Kb2 {[%clk 0:00:39]}  Be6 {[%clk 0:01:19]} 26. Rd2 {[%clk 0:00:15]}  Kf7 {[%clk 0:01:19]} 27. Rgd1 {[%clk 0:00:13]}  Rga8 {[%clk 0:01:17]} 28. Nb1 {[%clk 0:00:10]}  Ra2# {[%clk 0:01:15]} 0-1


[Site "https://www.chess.com"]

[Event "Titled Tuesday Blitz May 30 Early 2023"]
[White "Manon-og, Ramon Jr."]
[Black "Saim, Mohamed Ilias"]
[WhiteFideId "5200776"]
[BlackFideId "7900465"]
[WhiteElo "2344"]
[BlackElo "2063"]
[Result "1-0"]
[Round "03"]
[TimeControl "180+2"]
[Date "2023.05.30"]
[WhiteClock "0:02:24"]
[BlackClock "0:01:25"]

1. e4 {[%clk 0:03:00]}  c6 {[%clk 0:02:55]} 2. d4 {[%clk 0:03:00]}  d5 {[%clk 0:02:56]} 3. e5 {[%clk 0:03:01]}  Bf5 {[%clk 0:02:56]} 4. Nd2 {[%clk 0:03:01]}  e6 {[%clk 0:02:53]} 5. Nb3 {[%clk 0:03:01]}  Nd7 {[%clk 0:02:51]} 6. Nf3 {[%clk 0:03:02]}  c5 {[%clk 0:02:50]} 7. dxc5 {[%clk 0:03:00]}  Nxc5 {[%clk 0:02:47]} 8. Nxc5 {[%clk 0:03:00]}  Bxc5 {[%clk 0:02:47]} 9. Bb5+ {[%clk 0:03:00]}  Kf8 {[%clk 0:02:43]} 10. O-O {[%clk 0:03:00]}  Ne7 {[%clk 0:02:38]} 11. c3 {[%clk 0:02:48]}  h5 {[%clk 0:02:36]} 12. Bg5 {[%clk 0:02:37]}  Bg4 {[%clk 0:02:16]} 13. b4 {[%clk 0:02:31]}  Bb6 {[%clk 0:02:11]} 14. h3 {[%clk 0:02:31]}  Bf5 {[%clk 0:02:06]} 15. Nd4 {[%clk 0:02:27]}  Bg6 {[%clk 0:01:55]} 16. Qf3 {[%clk 0:02:26]}  Qc7 {[%clk 0:01:25]} 17. Nxe6+ {[%clk 0:02:24]} 1-0


[Site "https://www.chess.com"]

[Event "Titled Tuesday Blitz May 30 Early 2023"]
[White "Castillo Pena, Patricia Evarista"]
[Black "Korpics, Zsolt"]
[WhiteFideId "6412106"]
[BlackFideId "705241"]
[WhiteElo "1919"]
[BlackElo "2335"]
[Result "0-1"]
[Round "03"]
[TimeControl "180+2"]
[Date "2023.05.30"]
[WhiteClock "0:00:00"]
[BlackClock "0:00:08"]

1. d4 {[%clk 0:02:59]}  Nf6 {[%clk 0:02:59]} 2. Nf3 {[%clk 0:02:58]}  e6 {[%clk 0:02:59]} 3. e3 {[%clk 0:02:55]}  b6 {[%clk 0:02:56]} 4. Bd3 {[%clk 0:02:51]}  Bb7 {[%clk 0:02:55]} 5. O-O {[%clk 0:02:46]}  c5 {[%clk 0:02:55]} 6. b3 {[%clk 0:02:46]}  cxd4 {[%clk 0:02:54]} 7. exd4 {[%clk 0:02:46]}  d6 {[%clk 0:02:48]} 8. Bb2 {[%clk 0:02:45]}  Be7 {[%clk 0:02:46]} 9. Nbd2 {[%clk 0:02:44]}  O-O {[%clk 0:02:47]} 10. c4 {[%clk 0:02:44]}  Nbd7 {[%clk 0:02:46]} 11. Qe2 {[%clk 0:02:44]}  d5 {[%clk 0:02:43]} 12. Ne5 {[%clk 0:02:36]}  dxc4 {[%clk 0:02:42]} 13. bxc4 {[%clk 0:02:35]}  Qc7 {[%clk 0:02:35]} 14. Rac1 {[%clk 0:02:32]}  Bd6 {[%clk 0:02:31]} 15. Rfe1 {[%clk 0:02:26]}  Rac8 {[%clk 0:02:13]} 16. Qe3 {[%clk 0:01:33]}  Rfe8 {[%clk 0:01:27]} 17. Qh3 {[%clk 0:01:26]}  Nf8 {[%clk 0:01:20]} 18. Ndf3 {[%clk 0:01:10]}  Ng6 {[%clk 0:00:58]} 19. Nxg6 {[%clk 0:00:50]}  hxg6 {[%clk 0:00:57]} 20. Ne5 {[%clk 0:00:50]}  Bxe5 {[%clk 0:00:42]} 21. dxe5 {[%clk 0:00:48]}  Nd7 {[%clk 0:00:41]} 22. Qg3 {[%clk 0:00:41]}  Nc5 {[%clk 0:00:40]} 23. Bb1 {[%clk 0:00:39]}  Qc6 {[%clk 0:00:34]} 24. Rcd1 {[%clk 0:00:26]}  Red8 {[%clk 0:00:34]} 25. Rd6 {[%clk 0:00:21]}  Rxd6 {[%clk 0:00:16]} 26. exd6 {[%clk 0:00:21]}  Rd8 {[%clk 0:00:16]} 27. Rd1 {[%clk 0:00:16]}  Rd7 {[%clk 0:00:12]} 28. h4 {[%clk 0:00:14]}  Ne4 {[%clk 0:00:10]} 29. Bxe4 {[%clk 0:00:11]}  Qxe4 {[%clk 0:00:10]} 30. h5 {[%clk 0:00:08]}  Qc2 {[%clk 0:00:10]} 31. Qb3 {[%clk 0:00:02]}  Qf5 {[%clk 0:00:08]} 32. hxg6 {[%clk 0:00:00]}  Qxg6 {[%clk 0:00:08]} 0-1


[Site "https://www.chess.com"]

[Event "Titled Tuesday Blitz May 30 Early 2023"]
[White "Le, Tuan Minh"]
[Black "Kukhmazov, Arsen"]
[WhiteFideId "12401153"]
[BlackFideId "24108260"]
[WhiteElo "2566"]
[BlackElo "2396"]
[Result "1-0"]
[Round "04"]
[TimeControl "180+2"]
[Date "2023.05.30"]
[WhiteClock "0:00:22"]
[BlackClock "0:00:00"]

1. d4 {[%clk 0:03:00]}  d5 {[%clk 0:02:59]} 2. Nf3 {[%clk 0:02:59]}  Nf6 {[%clk 0:02:59]} 3. Bf4 {[%clk 0:02:57]}  c5 {[%clk 0:03:00]} 4. c3 {[%clk 0:02:57]}  Nc6 {[%clk 0:03:00]} 5. e3 {[%clk 0:02:57]}  Qb6 {[%clk 0:03:00]} 6. Qc2 {[%clk 0:02:56]}  cxd4 {[%clk 0:02:58]} 7. exd4 {[%clk 0:02:54]}  Bf5 {[%clk 0:02:58]} 8. Qb3 {[%clk 0:02:53]}  e6 {[%clk 0:02:58]} 9. Nbd2 {[%clk 0:02:53]}  Be7 {[%clk 0:02:58]} 10. Be2 {[%clk 0:02:53]}  h6 {[%clk 0:02:59]} 11. O-O {[%clk 0:02:52]}  O-O {[%clk 0:02:59]} 12. Rfe1 {[%clk 0:02:49]}  Ne4 {[%clk 0:02:58]} 13. Nf1 {[%clk 0:02:43]}  Bh7 {[%clk 0:02:53]} 14. h3 {[%clk 0:02:37]}  Rac8 {[%clk 0:02:53]} 15. Ne3 {[%clk 0:02:29]}  Rfe8 {[%clk 0:02:48]} 16. Rad1 {[%clk 0:02:25]}  Bd6 {[%clk 0:02:46]} 17. Bxd6 {[%clk 0:02:23]}  Nxd6 {[%clk 0:02:47]} 18. Qa3 {[%clk 0:02:17]}  Ne4 {[%clk 0:02:41]} 19. Bd3 {[%clk 0:02:15]}  Na5 {[%clk 0:02:32]} 20. Re2 {[%clk 0:01:52]}  Qc7 {[%clk 0:02:13]} 21. Rde1 {[%clk 0:01:49]}  Nd6 {[%clk 0:02:12]} 22. Ne5 {[%clk 0:01:26]}  Bxd3 {[%clk 0:02:03]} 23. Nxd3 {[%clk 0:01:27]}  Nac4 {[%clk 0:02:03]} 24. Qb3 {[%clk 0:01:23]}  b6 {[%clk 0:01:58]} 25. Qd1 {[%clk 0:01:15]}  a5 {[%clk 0:01:56]} 26. Nf1 {[%clk 0:01:13]}  Nf5 {[%clk 0:01:50]} 27. Ne5 {[%clk 0:01:08]}  Nxe5 {[%clk 0:01:45]} 28. Rxe5 {[%clk 0:01:09]}  b5 {[%clk 0:01:45]} 29. Ne3 {[%clk 0:00:58]}  Nd6 {[%clk 0:01:39]} 30. Ng4 {[%clk 0:00:46]}  b4 {[%clk 0:01:35]} 31. R5e3 {[%clk 0:00:46]}  Nf5 {[%clk 0:01:33]} 32. Rf3 {[%clk 0:00:41]}  bxc3 {[%clk 0:01:32]} 33. bxc3 {[%clk 0:00:41]}  Qb6 {[%clk 0:00:58]} 34. Qd2 {[%clk 0:00:41]}  Rb8 {[%clk 0:00:56]} 35. Ne5 {[%clk 0:00:32]}  Qb2 {[%clk 0:00:36]} 36. Qf4 {[%clk 0:00:32]}  f6 {[%clk 0:00:36]} 37. Nd7 {[%clk 0:00:30]}  Rbc8 {[%clk 0:00:12]} 38. Qg4 {[%clk 0:00:26]}  Kh8 {[%clk 0:00:08]} 39. Nc5 {[%clk 0:00:25]}  Qb6 {[%clk 0:00:05]} 40. Qh5 {[%clk 0:00:21]}  Re7 {[%clk 0:00:00]} 41. Rxf5 {[%clk 0:00:22]} 1-0


[Site "https://www.chess.com"]

[Event "Titled Tuesday Blitz May 30 Early 2023"]
[White "Karthik Rajaa"]
[Black "Babazada, Khazar"]
[WhiteFideId "25035215"]
[BlackFideId "13413554"]
[WhiteElo "2215"]
[BlackElo "2351"]
[Result "0-1"]
[Round "04"]
[TimeControl "180+2"]
[Date "2023.05.30"]
[WhiteClock "0:00:52"]
[BlackClock "0:02:40"]

1. Nf3 {[%clk 0:03:00]}  Nf6 {[%clk 0:02:59]} 2. b3 {[%clk 0:03:01]}  g6 {[%clk 0:02:58]} 3. Bb2 {[%clk 0:03:01]}  Bg7 {[%clk 0:02:59]} 4. g3 {[%clk 0:03:02]}  O-O {[%clk 0:03:00]} 5. Bg2 {[%clk 0:03:02]}  d6 {[%clk 0:03:00]} 6. d4 {[%clk 0:03:03]}  a5 {[%clk 0:02:59]} 7. O-O {[%clk 0:02:59]}  c6 {[%clk 0:02:59]} 8. c4 {[%clk 0:02:56]}  Bf5 {[%clk 0:03:00]} 9. Nbd2 {[%clk 0:02:46]}  a4 {[%clk 0:02:56]} 10. Nh4 {[%clk 0:02:45]}  Bc8 {[%clk 0:02:55]} 11. e4 {[%clk 0:02:38]}  Qa5 {[%clk 0:02:55]} 12. Qc2 {[%clk 0:02:34]}  Nbd7 {[%clk 0:02:53]} 13. Bc3 {[%clk 0:02:30]}  Qa7 {[%clk 0:02:53]} 14. e5 {[%clk 0:02:25]}  Ne8 {[%clk 0:02:46]} 15. Rfe1 {[%clk 0:02:13]}  dxe5 {[%clk 0:02:43]} 16. dxe5 {[%clk 0:02:14]}  Nc7 {[%clk 0:02:43]} 17. Nhf3 {[%clk 0:01:58]}  Nc5 {[%clk 0:02:43]} 18. b4 {[%clk 0:01:56]}  Bf5 {[%clk 0:02:43]} 19. Qd1 {[%clk 0:01:47]}  Nd3 {[%clk 0:02:43]} 20. Re3 {[%clk 0:01:48]}  Rfd8 {[%clk 0:02:43]} 21. Qe2 {[%clk 0:01:38]}  Bh6 {[%clk 0:02:43]} 22. Nh4 {[%clk 0:01:06]}  Bxe3 {[%clk 0:02:42]} 23. fxe3 {[%clk 0:01:06]}  Bg4 {[%clk 0:02:41]} 24. Qf1 {[%clk 0:00:52]}  Qxe3+ {[%clk 0:02:40]} 0-1


[Site "https://www.chess.com"]

[Event "Titled Tuesday Blitz May 30 Early 2023"]
[White "Fridman, Daniel"]
[Black "Herrera Reyes, Jose Antonio"]
[WhiteFideId "11600454"]
[BlackFideId "2274914"]
[WhiteElo "2525"]
[BlackElo "2272"]
[Result "0-1"]
[Round "04"]
[TimeControl "180+2"]
[Date "2023.05.30"]
[WhiteClock "0:00:00"]
[BlackClock "0:00:21"]

1. Nf3 {[%clk 0:02:56]}  Nf6 {[%clk 0:02:59]} 2. d4 {[%clk 0:02:55]}  g6 {[%clk 0:02:58]} 3. g3 {[%clk 0:02:55]}  c5 {[%clk 0:02:58]} 4. Bg2 {[%clk 0:02:56]}  cxd4 {[%clk 0:02:58]} 5. O-O {[%clk 0:02:56]}  h5 {[%clk 0:02:58]} 6. Bg5 {[%clk 0:02:48]}  Bg7 {[%clk 0:02:54]} 7. Nxd4 {[%clk 0:02:48]}  Nc6 {[%clk 0:02:53]} 8. c4 {[%clk 0:02:45]}  Qb6 {[%clk 0:02:35]} 9. Nb3 {[%clk 0:02:40]}  d6 {[%clk 0:02:18]} 10. Nc3 {[%clk 0:02:39]}  Be6 {[%clk 0:02:17]} 11. Nd5 {[%clk 0:02:34]}  Bxd5 {[%clk 0:02:17]} 12. cxd5 {[%clk 0:02:34]}  Ne5 {[%clk 0:02:17]} 13. Qd4 {[%clk 0:02:23]}  Qa6 {[%clk 0:01:48]} 14. h3 {[%clk 0:01:42]}  O-O {[%clk 0:01:47]} 15. Rfe1 {[%clk 0:01:31]}  Nh7 {[%clk 0:01:42]} 16. Qh4 {[%clk 0:01:13]}  Nxg5 {[%clk 0:01:19]} 17. Qxg5 {[%clk 0:01:14]}  Bf6 {[%clk 0:01:17]} 18. Qh6 {[%clk 0:01:10]}  Bg7 {[%clk 0:01:17]} 19. Qg5 {[%clk 0:01:10]}  Bf6 {[%clk 0:01:17]} 20. Qh6 {[%clk 0:01:06]}  Nc4 {[%clk 0:01:13]} 21. Nd2 {[%clk 0:00:50]}  Bxb2 {[%clk 0:00:39]} 22. Rab1 {[%clk 0:00:48]}  Bc3 {[%clk 0:00:37]} 23. Ne4 {[%clk 0:00:48]}  Bg7 {[%clk 0:00:36]} 24. Qg5 {[%clk 0:00:42]}  Rfe8 {[%clk 0:00:33]} 25. g4 {[%clk 0:00:37]}  hxg4 {[%clk 0:00:32]} 26. hxg4 {[%clk 0:00:37]}  Ne5 {[%clk 0:00:33]} 27. f4 {[%clk 0:00:22]}  Nd7 {[%clk 0:00:33]} 28. f5 {[%clk 0:00:20]}  Ne5 {[%clk 0:00:28]} 29. Rb3 {[%clk 0:00:20]}  f6 {[%clk 0:00:20]} 30. Qd2 {[%clk 0:00:18]}  g5 {[%clk 0:00:20]} 31. Rh3 {[%clk 0:00:17]}  Kf7 {[%clk 0:00:20]} 32. Rc1 {[%clk 0:00:14]}  Rh8 {[%clk 0:00:20]} 33. Rxh8 {[%clk 0:00:14]}  Rxh8 {[%clk 0:00:21]} 34. Rc7 {[%clk 0:00:00]}  Qb6+ {[%clk 0:00:21]} 0-1


[Site "https://www.chess.com"]

[Event "Titled Tuesday Blitz May 30 Early 2023"]
[White "Durarbayli, Vasif"]
[Black "Halkias, Stelios"]
[WhiteFideId "13402935"]
[BlackFideId "4201809"]
[WhiteElo "2551"]
[BlackElo "2451"]
[Result "1-0"]
[Round "04"]
[TimeControl "180+2"]
[Date "2023.05.30"]
[WhiteClock "0:00:18"]
[BlackClock "0:00:02"]

1. e4 {[%clk 0:03:00]}  c6 {[%clk 0:02:59]} 2. d4 {[%clk 0:03:00]}  d5 {[%clk 0:02:59]} 3. exd5 {[%clk 0:03:01]}  cxd5 {[%clk 0:02:59]} 4. c4 {[%clk 0:03:02]}  Nf6 {[%clk 0:02:59]} 5. Nc3 {[%clk 0:03:02]}  g6 {[%clk 0:02:59]} 6. Qb3 {[%clk 0:03:03]}  Bg7 {[%clk 0:02:58]} 7. cxd5 {[%clk 0:03:03]}  O-O {[%clk 0:02:59]} 8. Be2 {[%clk 0:03:03]}  Qb6 {[%clk 0:02:57]} 9. Qxb6 {[%clk 0:02:40]}  axb6 {[%clk 0:02:56]} 10. Bf4 {[%clk 0:02:26]}  Na6 {[%clk 0:02:51]} 11. d6 {[%clk 0:02:26]}  e6 {[%clk 0:02:16]} 12. Nf3 {[%clk 0:02:06]}  Nh5 {[%clk 0:02:15]} 13. Bg5 {[%clk 0:02:00]}  Bf6 {[%clk 0:02:02]} 14. Be3 {[%clk 0:01:40]}  Nb4 {[%clk 0:01:53]} 15. Kd2 {[%clk 0:01:40]}  Rd8 {[%clk 0:01:52]} 16. g4 {[%clk 0:01:39]}  e5 {[%clk 0:01:33]} 17. gxh5 {[%clk 0:01:28]}  exd4 {[%clk 0:01:27]} 18. Bxd4 {[%clk 0:01:23]}  Rxd6 {[%clk 0:01:24]} 19. Nb5 {[%clk 0:01:16]}  Rd8 {[%clk 0:01:24]} 20. hxg6 {[%clk 0:01:09]}  hxg6 {[%clk 0:01:23]} 21. Kc3 {[%clk 0:00:41]}  Nd5+ {[%clk 0:01:04]} 22. Kb3 {[%clk 0:00:40]}  Be6 {[%clk 0:00:59]} 23. Bc4 {[%clk 0:00:39]}  Rac8 {[%clk 0:00:40]} 24. Bxf6 {[%clk 0:00:38]}  Rxc4 {[%clk 0:00:19]} 25. Bxd8 {[%clk 0:00:20]}  Rb4+ {[%clk 0:00:15]} 26. Kc2 {[%clk 0:00:21]}  Rxb5 {[%clk 0:00:14]} 27. Nd4 {[%clk 0:00:20]}  Rc5+ {[%clk 0:00:14]} 28. Kd2 {[%clk 0:00:21]}  Bd7 {[%clk 0:00:11]} 29. Rac1 {[%clk 0:00:20]}  Ra5 {[%clk 0:00:11]} 30. a3 {[%clk 0:00:18]}  Nf4 {[%clk 0:00:11]} 31. Bxb6 {[%clk 0:00:17]}  Rd5 {[%clk 0:00:11]} 32. Rhe1 {[%clk 0:00:17]}  Ne6 {[%clk 0:00:11]} 33. Rxe6 {[%clk 0:00:17]}  Bxe6 {[%clk 0:00:11]} 34. Rc7 {[%clk 0:00:17]}  Bg4 {[%clk 0:00:09]} 35. Rxb7 {[%clk 0:00:17]}  Rh5 {[%clk 0:00:09]} 36. Bc7 {[%clk 0:00:16]}  Rd5 {[%clk 0:00:09]} 37. Ke3 {[%clk 0:00:16]}  Rc5 {[%clk 0:00:09]} 38. Bg3 {[%clk 0:00:15]}  Rc1 {[%clk 0:00:09]} 39. a4 {[%clk 0:00:16]}  Re1+ {[%clk 0:00:08]} 40. Kd2 {[%clk 0:00:16]}  Rd1+ {[%clk 0:00:09]} 41. Kc3 {[%clk 0:00:17]}  Rc1+ {[%clk 0:00:09]} 42. Kb3 {[%clk 0:00:17]}  Bd1+ {[%clk 0:00:09]} 43. Kb4 {[%clk 0:00:16]}  Ra1 {[%clk 0:00:08]} 44. b3 {[%clk 0:00:16]}  Bg4 {[%clk 0:00:07]} 45. Rb8+ {[%clk 0:00:17]}  Kg7 {[%clk 0:00:06]} 46. Be5+ {[%clk 0:00:17]}  Kh6 {[%clk 0:00:07]} 47. Nf5+ {[%clk 0:00:18]}  Bxf5 {[%clk 0:00:02]} 48. Bxa1 {[%clk 0:00:18]} 1-0


[Site "https://www.chess.com"]

[Event "Titled Tuesday Blitz May 30 Early 2023"]
[White "Sahib Singh"]
[Black "Ahmadzada, Ahmad"]
[WhiteFideId "25618342"]
[BlackFideId "13413007"]
[WhiteElo "1934"]
[BlackElo "2388"]
[Result "0-1"]
[Round "04"]
[TimeControl "180+2"]
[Date "2023.05.30"]
[WhiteClock "0:00:04"]
[BlackClock "0:00:05"]

1. e4 {[%clk 0:03:00]}  c6 {[%clk 0:03:00]} 2. d4 {[%clk 0:03:00]}  d5 {[%clk 0:03:00]} 3. Nc3 {[%clk 0:03:01]}  g6 {[%clk 0:03:00]} 4. Be3 {[%clk 0:02:58]}  Bg7 {[%clk 0:02:59]} 5. Qd2 {[%clk 0:02:58]}  h5 {[%clk 0:02:55]} 6. f3 {[%clk 0:02:57]}  Na6 {[%clk 0:02:44]} 7. Nge2 {[%clk 0:02:56]}  Nc7 {[%clk 0:02:41]} 8. O-O-O {[%clk 0:02:55]}  a5 {[%clk 0:02:37]} 9. Nf4 {[%clk 0:02:53]}  Nf6 {[%clk 0:02:30]} 10. e5 {[%clk 0:02:44]}  Ng8 {[%clk 0:02:30]} 11. Bd3 {[%clk 0:02:44]}  Bf5 {[%clk 0:02:24]} 12. Bxf5 {[%clk 0:02:34]}  gxf5 {[%clk 0:02:25]} 13. h4 {[%clk 0:02:33]}  e6 {[%clk 0:02:17]} 14. Nce2 {[%clk 0:02:33]}  Bh6 {[%clk 0:02:13]} 15. Ng3 {[%clk 0:02:32]}  Bxf4 {[%clk 0:02:13]} 16. Bxf4 {[%clk 0:02:33]}  Na6 {[%clk 0:01:54]} 17. Be3 {[%clk 0:02:24]}  Qb6 {[%clk 0:01:45]} 18. Ne2 {[%clk 0:02:21]}  Ne7 {[%clk 0:01:42]} 19. Rdg1 {[%clk 0:02:17]}  Kd7 {[%clk 0:01:32]} 20. Nf4 {[%clk 0:02:07]}  Rag8 {[%clk 0:01:28]} 21. g3 {[%clk 0:02:05]}  Qb4 {[%clk 0:01:23]} 22. c3 {[%clk 0:02:04]}  Qb6 {[%clk 0:01:22]} 23. Nd3 {[%clk 0:02:04]}  a4 {[%clk 0:01:09]} 24. Rg2 {[%clk 0:01:59]}  Qb5 {[%clk 0:01:08]} 25. Rhg1 {[%clk 0:01:57]}  b6 {[%clk 0:01:06]} 26. Qe2 {[%clk 0:01:53]}  Kc7 {[%clk 0:01:02]} 27. Kc2 {[%clk 0:01:41]}  Qc4 {[%clk 0:00:53]} 28. Nc1 {[%clk 0:01:28]}  Qxe2+ {[%clk 0:00:51]} 29. Nxe2 {[%clk 0:01:28]}  c5 {[%clk 0:00:52]} 30. Nf4 {[%clk 0:01:27]}  Kb7 {[%clk 0:00:46]} 31. Nd3 {[%clk 0:01:26]}  Nc6 {[%clk 0:00:37]} 32. dxc5 {[%clk 0:01:25]}  bxc5 {[%clk 0:00:37]} 33. Bxc5 {[%clk 0:01:21]}  Nxe5 {[%clk 0:00:28]} 34. Nxe5 {[%clk 0:01:00]}  Nxc5 {[%clk 0:00:28]} 35. Nxf7 {[%clk 0:01:01]}  Rh7 {[%clk 0:00:29]} 36. Ng5 {[%clk 0:01:01]}  Re7 {[%clk 0:00:30]} 37. Re2 {[%clk 0:01:01]}  e5 {[%clk 0:00:29]} 38. Rge1 {[%clk 0:01:00]}  e4 {[%clk 0:00:29]} 39. Rd2 {[%clk 0:00:59]}  Kc6 {[%clk 0:00:27]} 40. Rd4 {[%clk 0:00:58]}  Rb8 {[%clk 0:00:21]} 41. Re3 {[%clk 0:00:53]}  Reb7 {[%clk 0:00:20]} 42. c4 {[%clk 0:00:46]}  Rxb2+ {[%clk 0:00:20]} 43. Kc3 {[%clk 0:00:41]}  Rxa2 {[%clk 0:00:13]} 44. cxd5+ {[%clk 0:00:38]}  Kd6 {[%clk 0:00:13]} 45. Rb4 {[%clk 0:00:22]}  Ra3+ {[%clk 0:00:12]} 46. Kc2 {[%clk 0:00:15]}  Rxe3 {[%clk 0:00:06]} 47. Rxb8 {[%clk 0:00:15]}  exf3 {[%clk 0:00:07]} 48. Rd8+ {[%clk 0:00:15]}  Kc7 {[%clk 0:00:06]} 49. Rf8 {[%clk 0:00:15]}  f2 {[%clk 0:00:02]} 50. Rxf5 {[%clk 0:00:16]}  Re2+ {[%clk 0:00:03]} 51. Kc3 {[%clk 0:00:14]}  a3 {[%clk 0:00:03]} 52. Kb4 {[%clk 0:00:06]}  a2 {[%clk 0:00:03]} 53. Kxc5 {[%clk 0:00:06]}  Rc2+ {[%clk 0:00:04]} 54. Kd4 {[%clk 0:00:06]}  a1=Q+ {[%clk 0:00:05]} 55. Ke3 {[%clk 0:00:07]}  f1=Q {[%clk 0:00:05]} 56. Ne6+ {[%clk 0:00:06]}  Kd6 {[%clk 0:00:05]} 57. Rxf1 {[%clk 0:00:04]}  Qxf1 {[%clk 0:00:05]} 0-1


[Site "https://www.chess.com"]

[Event "Titled Tuesday Blitz May 30 Early 2023"]
[White "Bachmann, Axel"]
[Black "Korchmar, Vasiliy"]
[WhiteFideId "3700488"]
[BlackFideId "24131750"]
[WhiteElo "2605"]
[BlackElo "2370"]
[Result "1-0"]
[Round "04"]
[TimeControl "180+2"]
[Date "2023.05.30"]
[WhiteClock "0:00:03"]
[BlackClock "0:00:02"]

1. e4 {[%clk 0:02:55]}  c5 {[%clk 0:03:00]} 2. Nf3 {[%clk 0:02:54]}  d6 {[%clk 0:03:00]} 3. d4 {[%clk 0:02:53]}  cxd4 {[%clk 0:03:01]} 4. Nxd4 {[%clk 0:02:53]}  Nf6 {[%clk 0:03:02]} 5. Nc3 {[%clk 0:02:52]}  Nc6 {[%clk 0:03:02]} 6. Bg5 {[%clk 0:02:49]}  Bd7 {[%clk 0:03:02]} 7. Qd2 {[%clk 0:02:47]}  a6 {[%clk 0:03:02]} 8. O-O-O {[%clk 0:02:47]}  e6 {[%clk 0:03:03]} 9. f3 {[%clk 0:02:11]}  Be7 {[%clk 0:03:01]} 10. h4 {[%clk 0:02:11]}  Nxd4 {[%clk 0:03:00]} 11. Qxd4 {[%clk 0:02:10]}  b5 {[%clk 0:03:01]} 12. Kb1 {[%clk 0:02:09]}  Qc7 {[%clk 0:03:00]} 13. Bd3 {[%clk 0:01:53]}  O-O {[%clk 0:02:57]} 14. Ne2 {[%clk 0:01:40]}  e5 {[%clk 0:02:38]} 15. Qf2 {[%clk 0:01:24]}  Be6 {[%clk 0:02:39]} 16. Nc3 {[%clk 0:01:16]}  a5 {[%clk 0:02:06]} 17. Nxb5 {[%clk 0:01:11]}  Qb7 {[%clk 0:02:00]} 18. c4 {[%clk 0:01:06]}  a4 {[%clk 0:01:39]} 19. a3 {[%clk 0:01:05]}  Rfc8 {[%clk 0:01:24]} 20. Rc1 {[%clk 0:01:05]}  Rc6 {[%clk 0:01:21]} 21. Rc2 {[%clk 0:00:56]}  Bd8 {[%clk 0:01:05]} 22. Rd1 {[%clk 0:00:36]}  Bb6 {[%clk 0:01:00]} 23. Be3 {[%clk 0:00:36]}  Bxe3 {[%clk 0:00:53]} 24. Qxe3 {[%clk 0:00:37]}  Nd7 {[%clk 0:00:53]} 25. Bf1 {[%clk 0:00:37]}  Nb6 {[%clk 0:00:23]} 26. Nxd6 {[%clk 0:00:34]}  Qc7 {[%clk 0:00:20]} 27. Rcd2 {[%clk 0:00:29]}  h6 {[%clk 0:00:14]} 28. Nb5 {[%clk 0:00:24]}  Qe7 {[%clk 0:00:14]} 29. Rd6 {[%clk 0:00:22]}  Nxc4 {[%clk 0:00:12]} 30. Bxc4 {[%clk 0:00:20]}  Rxc4 {[%clk 0:00:13]} 31. Qd3 {[%clk 0:00:13]}  Rac8 {[%clk 0:00:07]} 32. Rd8+ {[%clk 0:00:11]}  Kh7 {[%clk 0:00:07]} 33. Rxc8 {[%clk 0:00:11]}  Rxc8 {[%clk 0:00:08]} 34. Qd6 {[%clk 0:00:09]}  Qxh4 {[%clk 0:00:05]} 35. Qxe5 {[%clk 0:00:08]}  Qf2 {[%clk 0:00:06]} 36. Nc3 {[%clk 0:00:05]}  Bb3 {[%clk 0:00:03]} 37. Rc1 {[%clk 0:00:05]}  Be6 {[%clk 0:00:03]} 38. Rd1 {[%clk 0:00:04]}  Qxg2 {[%clk 0:00:02]} 39. Qf4 {[%clk 0:00:03]}  Qg6 {[%clk 0:00:02]} 40. Qe3 {[%clk 0:00:03]}  Qf6 {[%clk 0:00:02]} 41. Ka1 {[%clk 0:00:03]}  Rb8 {[%clk 0:00:02]} 42. f4 {[%clk 0:00:03]}  Rb3 {[%clk 0:00:03]} 43. Rg1 {[%clk 0:00:03]}  Qh4 {[%clk 0:00:02]} 44. Qd4 {[%clk 0:00:03]}  Qh2 {[%clk 0:00:02]} 45. Qxg7# {[%clk 0:00:03]} 1-0


[Site "https://www.chess.com"]